lending/lending_fUSD_20251114
["ID","MTS","AMOUNT","RATE_DAILY","PERIOD"]
[393921780,1763096606919,-222.0,0.000566,120]
[393921781,1763096606969,-150.0,0.00056608,120]
[393921782,1763096607016,-150.0,0.00056612,120]
[393921783,1763096607061,-150.0,0.00056612,120]
[393921784,1763096607105,-150.0,0.00056613,120]
[393921785,1763096607150,-150.0,0.00056616,120]
[393921786,1763096607195,-150.0,0.00056625,120]
[393921787,1763096607241,-150.0,0.00056637,120]
[393921788,1763096607286,-1000.0,0.0005664,120]
[393921789,1763096607330,-1000.0,0.0005664,120]
[393921790,1763096607373,-1000.0,0.0005664,120]
[393921791,1763096607415,-150.0,0.00056642,120]
[393921792,1763096607464,-150.0,0.00056652,120]
[393921793,1763096607535,-150.0,0.00056652,120]
[393921794,1763096607582,-150.0,0.00056657,120]
[393921795,1763096607629,-150.0,0.0005666,120]
[393921796,1763096607675,-150.0,0.00056664,120]
[393921797,1763096607724,-150.0,0.00056665,120]
[393921798,1763096607772,-150.0,0.00056668,120]
[393921799,1763096607818,-150.0,0.00056668,120]
[393921800,1763096607871,-150.0,0.00056688,120]
[393921801,1763096607918,-150.0,0.00056692,120]
[393921802,1763096607972,-150.0,0.00056692,120]
[393921803,1763096608020,-150.0,0.00056694,120]
[393921804,1763096608066,-150.0,0.00056702,120]
[393921805,1763096608114,-150.0,0.00056704,120]
[393921806,1763096608161,-150.0,0.00056708,120]
[393921807,1763096608209,-500.0,0.00056712,120]
[393921808,1763096608255,-150.0,0.0005672,120]
[393921809,1763096608298,-150.0,0.00056723,120]
[393921810,1763096608341,-150.0,0.00056733,120]
[393921811,1763096608384,-150.0,0.00056733,120]
[393921812,1763096608426,-500.0,0.00056733,120]
[393921813,1763096608471,-150.0,0.00056744,120]
[393921814,1763096608515,-150.0,0.00056746,120]
[393921815,1763096608563,-150.0,0.00056748,120]
[393921816,1763096608611,-150.0,0.00056752,120]
[393921817,1763096608657,-150.0,0.00056754,120]
[393921818,1763096608702,-150.0,0.00056772,120]
[393921819,1763096608750,-150.0,0.00056773,120]
[393921820,1763096608806,-150.0,0.00056773,120]
[393921821,1763096608861,-150.0,0.00056774,120]
[393921822,1763096608910,-150.0,0.0005678,120]
[393921823,1763096608957,-150.0,0.00056784,120]
[393921824,1763096609007,-150.0,0.0005679,120]
[393921825,1763096609053,-331.23605786,0.000568,120]
[393921826,1763096609102,-150.0,0.00056809,120]
[393921827,1763096609157,-150.0,0.00056814,120]
[393921828,1763096609208,-150.0,0.00056814,120]
[393921829,1763096609257,-150.0,0.00056824,120]
[393921830,1763096609311,-150.0,0.00056824,120]
[393921831,1763096609356,-150.0,0.00056824,120]
[393921832,1763096609402,-150.0,0.00056824,120]
[393921833,1763096609447,-150.0,0.00056835,120]
[393921834,1763096609490,-150.0,0.00056838,120]
[393921835,1763096609533,-150.0,0.0005684,120]
[393921836,1763096609579,-150.0,0.00056847,120]
[393921837,1763096609625,-150.0,0.00056854,120]
[393921838,1763096609672,-150.0,0.00056854,120]
[393921839,1763096609721,-150.0,0.00056863,120]
[393921840,1763096609771,-150.0,0.00056867,120]
[393921841,1763096609816,-150.0,0.00056876,120]
[393921842,1763096609863,-150.0,0.00056876,120]
[393921843,1763096609908,-150.0,0.00056879,120]
[393921844,1763096609973,-2000.0,0.0005689,65]
[393921845,1763096610031,-150.0,0.00056894,120]
[393921846,1763096610081,-150.0,0.00056894,120]
[393921847,1763096610129,-150.0,0.00056896,120]
[393921848,1763096610178,-150.0,0.00056899,120]
[393921849,1763096610227,-150.0,0.00056899,120]
[393921850,1763096610276,-152.0,0.000569,120]
[393921851,1763096610329,-150.0,0.00056903,120]
[393921852,1763096610373,-150.0,0.00056906,120]
[393921853,1763096610416,-150.0,0.00056923,120]
[393921854,1763096610457,-150.0,0.00056924,120]
[393921855,1763096610502,-1000.0,0.00056925,120]
[393921856,1763096610547,-1000.0,0.00056925,120]
[393921857,1763096610597,-1000.0,0.00056925,120]
[393921858,1763096610643,-1000.0,0.00056925,120]
[393921859,1763096610698,-1000.0,0.00056925,120]
[393921860,1763096610757,-150.0,0.00056928,120]
[393921861,1763096610808,-150.0,0.00056935,120]
[393921862,1763096610859,-150.0,0.00056935,120]
[393921863,1763096610910,-150.0,0.0005694,120]
[393921864,1763096610956,-150.0,0.00056943,120]
[393921865,1763096611002,-150.0,0.00056953,120]
[393921867,1763096611249,-150.0,0.00056959,120]
[393921868,1763096611296,-150.0,0.00056968,120]
[393921869,1763096611343,-150.0,0.00056972,120]
[393921870,1763096611387,-150.0,0.00056975,120]
[393921871,1763096611432,-150.0,0.00056975,120]
[393921872,1763096611478,-150.0,0.0005698,120]
[393921873,1763096611522,-150.0,0.00056982,120]
[393921874,1763096611567,-150.0,0.00056983,120]
[393921875,1763096611612,-500.0,0.00056986,120]
[393921876,1763096611657,-1000.0,0.00056999,120]
[393921877,1763096611703,-50000.0,0.00057,75]
[393921878,1763096611747,-1000.0,0.00057,120]
[393921879,1763096611793,-3000.0,0.00057,120]
[393921880,1763096611838,-150.0,0.00057,120]
[393921881,1763096611882,-154.0,0.00057,120]
[393921882,1763096611932,-1298.0,0.00057,30]
[393921883,1763096611981,-863.05,0.00057007,120]
[393921884,1763096612031,-150.0,0.00057011,120]
[393921885,1763096612077,-150.0,0.00057012,120]
[393921886,1763096612126,-150.0,0.00057015,120]
[393921887,1763096612175,-150.0,0.00057015,120]
[393921888,1763096612225,-150.0,0.00057023,120]
[393921889,1763096612273,-150.0,0.00057032,120]
[393921890,1763096612318,-150.0,0.00057034,120]
[393921891,1763096612363,-150.0,0.00057038,120]
[393921892,1763096612409,-150.0,0.00057039,120]
[393921893,1763096612453,-150.0,0.00057049,120]
[393921894,1763096612500,-150.0,0.00057049,120]
[393921895,1763096612546,-150.0,0.00057056,120]
[393921896,1763096612591,-150.0,0.00057056,120]
[393921897,1763096612634,-150.0,0.00057056,120]
[393921898,1763096612678,-150.0,0.00057062,120]
[393921899,1763096612727,-150.0,0.00057068,120]
[393921900,1763096612774,-150.0,0.00057084,120]
[393921901,1763096612820,-150.0,0.00057084,120]
[393921902,1763096612864,-150.0,0.00057094,120]
[393921903,1763096612908,-150.0,0.00057096,120]
[393921904,1763096612959,-150.0,0.00057096,120]
[393921905,1763096613007,-150.0,0.00057097,120]
[393921906,1763096613058,-150.0,0.00057101,120]
[393921907,1763096613106,-150.0,0.00057102,120]
[393921908,1763096613156,-150.0,0.00057104,120]
[393921909,1763096613205,-150.0,0.00057126,120]
[393921910,1763096613253,-150.0,0.00057127,120]
[393921911,1763096613305,-150.0,0.00057136,120]
[393921912,1763096613355,-150.0,0.00057137,120]
[393921913,1763096613402,-150.0,0.00057137,120]
[393921914,1763096613451,-150.0,0.00057142,120]
[393921915,1763096613502,-150.0,0.00057145,120]
[393921916,1763096613552,-150.0,0.00057155,120]
[393921917,1763096613603,-150.0,0.0005717,120]
[393921918,1763096613653,-150.0,0.00057177,120]
[393921919,1763096613705,-150.0,0.00057177,120]
[393921920,1763096613758,-150.0,0.00057182,120]
[393921921,1763096613811,-150.0,0.00057183,120]
[393921922,1763096613859,-150.0,0.00057188,120]
[393921923,1763096613906,-150.0,0.0005719,120]
[393921924,1763096613952,-150.0,0.00057199,120]
[393921925,1763096613997,-150.0,0.00057199,120]
[393921926,1763096614041,-150.0,0.00057212,120]
[393921927,1763096614098,-150.0,0.00057217,120]
[393921928,1763096614147,-150.0,0.00057217,120]
[393921929,1763096614195,-150.0,0.0005722,120]
[393921930,1763096614241,-150.0,0.00057221,120]
[393921931,1763096614288,-150.0,0.00057229,120]
[393921932,1763096614333,-150.0,0.00057234,120]
[393921933,1763096614379,-150.0,0.00057234,120]
[393921934,1763096614423,-150.0,0.00057234,120]
[393921935,1763096614470,-150.0,0.00057236,120]
[393921936,1763096614526,-150.0,0.0005724,120]
[393921937,1763096614579,-150.0,0.00057241,120]
[393921938,1763096614634,-150.0,0.00057258,120]
[393921939,1763096614689,-150.0,0.00057258,120]
[393921940,1763096614740,-500.0,0.0005726,120]
[393921941,1763096614790,-150.0,0.00057261,120]
[393921942,1763096614843,-150.0,0.0005727,120]
[393921943,1763096614892,-150.0,0.00057278,120]
[393921944,1763096614941,-150.0,0.00057292,120]
[393921945,1763096614991,-150.0,0.00057292,120]
[393921946,1763096615044,-150.0,0.00057298,120]
[393921947,1763096615094,-150.0,0.00057298,120]
[393921948,1763096615143,-150.0,0.00057299,120]
[393921949,1763096615190,-150.0,0.00057301,120]
[393921950,1763096615242,-150.0,0.00057302,120]
[393921951,1763096615293,-150.0,0.00057313,120]
[393921952,1763096615350,-150.0,0.00057323,120]
[393921953,1763096615406,-150.0,0.00057327,120]
[393921954,1763096615461,-150.0,0.00057338,120]
[393921955,1763096615522,-150.0,0.00057338,120]
[393921956,1763096615575,-150.0,0.00057341,120]
[393921957,1763096615626,-150.0,0.00057344,120]
[393921958,1763096615678,-150.0,0.0005735,120]
[393921959,1763096615735,-150.0,0.00057354,120]
[393921960,1763096615784,-150.0,0.00057356,120]
[393921961,1763096615833,-150.0,0.00057365,120]
[393921962,1763096615880,-150.0,0.00057367,120]
[393921963,1763096615928,-150.0,0.00057368,120]
[393921964,1763096615980,-150.0,0.00057379,120]
[393921965,1763096616028,-150.0,0.00057379,120]
[393921966,1763096616077,-150.0,0.00057381,120]
[393921967,1763096616125,-150.0,0.00057385,120]
[393921968,1763096616173,-150.0,0.00057396,120]
[393921969,1763096616224,-2645.0,0.000574,120]
[393921970,1763096616273,-150.0,0.00057407,120]
[393921971,1763096616466,-150.0,0.00057411,120]
[393921972,1763096616540,-150.0,0.00057414,120]
[393921973,1763096616590,-150.0,0.00057419,120]
[393921974,1763096616638,-150.0,0.00057419,120]
[393921975,1763096616688,-150.0,0.0005742,120]
[393921976,1763096616736,-150.0,0.00057434,120]
[393921977,1763096616784,-150.0,0.00057442,120]
[393921978,1763096616831,-150.0,0.00057448,120]
[393921979,1763096616876,-555.25356517,0.00057449,120]
[393921980,1763096616920,-1224.44483922,0.00057454,120]
[393921981,1763096616967,-150.0,0.00057456,120]
[393921982,1763096617015,-1687.0574961,0.00057459,120]
[393921983,1763096617061,-1687.0574961,0.00057459,120]
[393921984,1763096617106,-1224.44483922,0.00057459,120]
[393921985,1763096617152,-244.30286617,0.00057459,120]
[393921986,1763096617199,-1052.79507304,0.00057459,120]
[393921987,1763096617247,-150.0,0.0005746,120]
[393921988,1763096617296,-150.0,0.0005746,120]
[393921989,1763096617343,-150.0,0.0005746,120]
[393921990,1763096617388,-254.18438471,0.00057461,120]
[393921991,1763096617433,-3079.06489641,0.00057467,120]
[393921992,1763096617482,-1052.79507304,0.00057468,120]
[393921993,1763096617531,-150.0,0.00057471,120]
[393921994,1763096617578,-1137.85030995,0.00057474,120]
[393921995,1763096617624,-287.31091295,0.00057476,120]
[393921996,1763096617672,-194.33536876,0.00057477,120]
[393921997,1763096617726,-151.0,0.00057477,30]
[393921998,1763096617778,-194.33536876,0.00057477,120]
[393921999,1763096617829,-254.18438471,0.00057479,120]
[393922000,1763096617880,-3214.8541914,0.00057481,120]
[393922001,1763096617931,-244.30286617,0.00057485,120]
[393922002,1763096617983,-1137.85030995,0.0005749,120]
[393922003,1763096618031,-287.31091295,0.00057495,120]
[393922004,1763096618082,-555.25356517,0.00057498,120]
[393922005,1763096618130,-3214.8541914,0.00057499,120]
[393922006,1763096618179,-3079.06489641,0.000575,120]
[393922007,1763096618229,-184.15814698,0.000575,120]
[393922008,1763096618277,-167.21017724,0.000575,120]
[393922009,1763096618323,-196.49436432,0.000575,120]
[393922010,1763096618369,-188.81053977,0.000575,120]
[393922011,1763096618417,-152.26773666,0.000575,120]
[393922012,1763096618465,-285.6856947,0.000575,120]
[393922013,1763096618515,-153.5742628,0.000575,120]
[393922014,1763096618560,-160.576465,0.000575,120]
[393922015,1763096618605,-191.99243317,0.000575,120]
[393922016,1763096618650,-171.74832838,0.000575,120]
[393922017,1763096618697,-168.85461524,0.000575,120]
[393922018,1763096618744,-160.95395294,0.000575,120]
[393922019,1763096618795,-256.50445864,0.000575,120]
[393922020,1763096618844,-172.34647952,0.000575,120]
[393922021,1763096618892,-165.48144042,0.000575,120]
[393922022,1763096618942,-272.65911307,0.000575,120]
[393922023,1763096618990,-395.83333246,0.000575,30]
[393922024,1763096619036,-757.0,0.000575,30]
[393922025,1763096619083,-1538.38498855,0.000575,90]
[393922026,1763096619132,-500.0,0.00057534,120]
[393922027,1763096619181,-528.62323946,0.00057534,120]
[393922028,1763096619234,-230.0,0.00057534,120]
[393922029,1763096619463,860.44,0.000388,30]
[393922030,1763096619518,860.44,0.000404,30]
[393922031,1763096619570,860.44,0.00048,30]
[393922032,1763096619951,1000.0,0.00057515,120]
[393922033,1763096620007,1085.938,0.00057496,120]
[393922034,1763096620172,541.86,0.00016523,2]
[393922035,1763096620265,694.74,0.00046098,30]
[393922043,1763096655718,226.01,0.00016523,2]
[393922049,1763096683882,-151.0,0.00041098,60]
[393922050,1763096683928,-151.0,0.00041098,60]
[393922051,1763096683990,-280.368315,0.00041098,60]
[393922052,1763096684062,-300.0,0.00041202,30]
[393922053,1763096684112,-690.65,0.00042022,30]
[393922054,1763096684167,-702.05,0.00046098,30]
[393922055,1763096684225,-1000000.0,0.00052,120]
[393922056,1763096684282,-1000000.0,0.00052,120]
[393922057,1763096684335,-1000000.0,0.00052,120]
[393922058,1763096684389,-1000000.0,0.00053,120]
[393922059,1763096684444,-997724.931685,0.00053,120]
[393922061,1763096688538,-2275.068315,0.00053,120]
[393922062,1763096688591,-1000000.0,0.00053,120]
[393922063,1763096688643,-1000000.0,0.00054,120]
[393922064,1763096688692,-1000000.0,0.00054,120]
[393922065,1763096688740,-1000000.0,0.00054,120]
[393922066,1763096688786,-5517.0,0.000544,120]
[393922067,1763096688833,-3108.54306377,0.00054831,120]
[393922068,1763096688880,-866.37020518,0.00055696,120]
[393922069,1763096688927,-150.0,0.00057533,120]
[393922070,1763096688973,-150.0,0.00057533,120]
[393922071,1763096689017,-500.0,0.00057533,120]
[393922072,1763096689061,-500.0,0.00057533,120]
[393922073,1763096689103,-500.0,0.00057533,120]
[393922074,1763096689147,-500.0,0.00057533,120]
[393922075,1763096689193,-500.0,0.00057533,120]
[393922076,1763096689239,-500.0,0.00057533,120]
[393922077,1763096689286,-500.0,0.00057533,120]
[393922078,1763096689331,-500.0,0.00057533,120]
[393922079,1763096689377,-500.0,0.00057533,120]
[393922080,1763096689420,-500.0,0.00057533,120]
[393922081,1763096689469,-500.0,0.00057533,120]
[393922083,1763096689518,-500.0,0.00057533,120]
[393922084,1763096689568,-584.0,0.00057533,120]
[393922085,1763096689616,-150.0,0.00057533,120]
[393922086,1763096689665,-150.0,0.00057533,120]
[393922087,1763096689713,-165.30555299,0.00057533,120]
[393922088,1763096689765,-500.0,0.00057533,120]
[393922089,1763096689813,-500.0,0.00057533,120]
[393922090,1763096689857,-500.0,0.00057533,120]
[393922091,1763096689901,-500.0,0.00057533,120]
[393922092,1763096689945,-500.0,0.00057533,120]
[393922093,1763096689992,-500.0,0.00057533,120]
[393922094,1763096690041,-328.9962114,0.00057533,120]
[393922095,1763096690086,-500.0,0.00057533,120]
[393922096,1763096690133,-500.0,0.00057533,120]
[393922097,1763096690179,-500.0,0.00057533,120]
[393922098,1763096690226,-500.0,0.00057533,120]
[393922099,1763096690272,-500.0,0.00057533,120]
[393922100,1763096690322,-500.0,0.00057533,120]
[393922101,1763096690370,-445.60496571,0.00057533,120]
[393922102,1763096690415,-500.0,0.00057533,120]
[393922103,1763096690459,-500.0,0.00057533,120]
[393922104,1763096690504,-500.0,0.00057533,120]
[393922105,1763096690552,-500.0,0.00057533,120]
[393922106,1763096690598,-500.0,0.00057533,120]
[393922107,1763096690640,-500.0,0.00057533,120]
[393922108,1763096690686,-500.0,0.00057533,120]
[393922109,1763096690728,-500.0,0.00057533,120]
[393922110,1763096690773,-500.0,0.00057533,120]
[393922111,1763096690819,-500.0,0.00057533,120]
[393922112,1763096690865,-205.18214532,0.00057533,120]
[393922113,1763096690909,-150.0,0.00057533,120]
[393922114,1763096690956,-150.0,0.00057533,120]
[393922115,1763096691003,-150.0,0.00057533,120]
[393922116,1763096691051,-211.66522865,0.00057533,120]
[393922117,1763096691099,-500.0,0.00057533,120]
[393922118,1763096691146,-500.0,0.00057533,120]
[393922119,1763096691360,-500.0,0.00057533,120]
[393922120,1763096691409,-500.0,0.00057533,120]
[393922121,1763096691457,-500.0,0.00057533,120]
[393922122,1763096691508,-500.0,0.00057533,120]
[393922123,1763096691559,-500.0,0.00057533,120]
[393922124,1763096691609,-500.0,0.00057533,120]
[393922125,1763096691656,-500.0,0.00057533,120]
[393922126,1763096691700,-505.68760807,0.00057533,120]
[393922127,1763096691746,-500.0,0.00057533,120]
[393922128,1763096691793,-500.0,0.00057533,120]
[393922129,1763096691839,-354.4987199,0.00057533,120]
[393922130,1763096691882,-150.0,0.00057533,120]
[393922131,1763096691925,-150.0,0.00057533,120]
[393922132,1763096691967,-150.0,0.00057533,120]
[393922133,1763096692007,-150.0,0.00057533,120]
[393922134,1763096692046,-150.0,0.00057533,120]
[393922135,1763096692085,-161.57480564,0.00057533,120]
[393922136,1763096692124,-500.0,0.00057533,120]
[393922137,1763096692163,-500.0,0.00057533,120]
[393922138,1763096692202,-769.21616,0.00057534,85]
[393922139,1763096692238,-769.21616,0.00057534,85]
[393922140,1763096692275,-769.21616,0.00057534,85]
[393922141,1763096692314,-769.21616,0.00057534,85]
[393922142,1763096692353,-769.21616,0.00057534,85]
[393922143,1763096692391,-769.21616,0.00057534,85]
[393922144,1763096692430,-1215.0,0.00057534,120]
[393922145,1763096692473,-2832.25382718,0.00057534,30]
[393922146,1763096692518,-1000.0,0.00057534,120]
[393922147,1763096692563,-152.0,0.000576,120]
[393922148,1763096692610,-150.0,0.00057613,120]
[393922149,1763096692655,-150.0,0.00057715,120]
[393922150,1763096692701,-400.0,0.000578,120]
[393922151,1763096692745,-400.0,0.000578,120]
[393922152,1763096692795,-400.0,0.000578,120]
[393922153,1763096692840,-400.0,0.000578,120]
[393922154,1763096692885,-500.0,0.00057808,120]
[393922155,1763096692928,-2000.0,0.000579,30]
[393922156,1763096692971,-1000.0,0.00057999,120]
[393922157,1763096693017,-50000.0,0.00058,88]
[393922158,1763096693062,-4500.0,0.00058,30]
[393922159,1763096693110,-1375.81982299,0.00058,120]
[393922160,1763096693157,-200.0,0.00058,120]
[393922161,1763096693203,-150.0,0.00058,120]
[393922162,1763096693250,-1000.0,0.00058,120]
[393922163,1763096693298,-3000.0,0.00058,120]
[393922164,1763096693345,-150.0,0.00058,120]
[393922165,1763096693394,-154.0,0.00058,120]
[393922166,1763096693442,-9879.55215021,0.00058,120]
[393922167,1763096693490,-500.0,0.00058082,120]
[393922168,1763096693540,-152.0,0.000583,120]
[393922169,1763096693590,-500.0,0.00058356,120]
[393922170,1763096693642,-500.0,0.0005863,120]
[393922171,1763096693691,-2000.0,0.0005865,65]
[393922172,1763096693740,-400.0,0.000588,120]
[393922173,1763096693788,-400.0,0.000588,120]
[393922174,1763096693839,-400.0,0.000588,120]
[393922175,1763096693890,-281.69,0.000588,120]
[393922176,1763096693939,-500.0,0.00058904,120]
[393922177,1763096693990,-1000.0,0.00058999,120]
[393922178,1763096694042,-50000.0,0.00059,99]
[393922179,1763096694092,-2000.0,0.00059,120]
[393922180,1763096694143,-751.42572,0.00059,120]
[393922181,1763096694193,-15000.42348571,0.00059,120]
[393922182,1763096694240,-3000.0,0.00059,120]
[393922183,1763096694293,-3000.0,0.00059,120]
[393922184,1763096694338,-150.0,0.00059,120]
[393922186,1763096694384,-154.0,0.00059,120]
[393922187,1763096694431,-255.96361334,0.00059,30]
[393922188,1763096694475,-152.0,0.000591,120]
[393922189,1763096694518,-152.404,0.00059134,117]
[393922190,1763096694563,-500.0,0.00059178,120]
[393922191,1763096694606,-1095.0,0.00059241,120]
[393922192,1763096694649,-175.56,0.000593,120]
[393922193,1763096694692,-5000.0,0.000595,120]
[393922194,1763096694735,-152.0,0.000598,120]
[393922195,1763096694778,-1237.31713182,0.000599,120]
[393922196,1763096694827,-594.23,0.00059986,120]
[393922197,1763096694884,-1000.0,0.00059999,120]
[393922198,1763096694934,-50000.0,0.0006,120]
[393922199,1763096694982,-1000.0,0.0006,120]
[393922200,1763096695029,-16400.0,0.0006,120]
[393922201,1763096695075,-16400.0,0.0006,120]
[393922202,1763096695121,-16400.0,0.0006,120]
[393922203,1763096695164,-16400.0,0.0006,120]
[393922204,1763096695206,-500.0,0.0006,120]
[393922205,1763096695249,-172.68716324,0.0006,120]
[393922206,1763096695298,-1167.35175596,0.0006,30]
[393922207,1763096695344,-486.83366899,0.0006,120]
[393922208,1763096695390,-268.5577073,0.0006,120]
[393922209,1763096695435,-150.0,0.0006,120]
[393922210,1763096695481,-200.0,0.0006,120]
[393922211,1763096695528,-5974.76549791,0.0006,30]
[393922212,1763096695578,-150.0,0.0006,45]
[393922213,1763096695627,-2875.10140515,0.0006,120]
[393922214,1763096695674,-10451.12769672,0.0006,120]
[393922215,1763096695725,-2028.349184,0.0006,120]
[393922216,1763096695776,-917.21,0.0006,120]
[393922217,1763096695829,-587.37,0.0006,120]
[393922218,1763096695879,-1806.53,0.0006,120]
[393922219,1763096695930,-150.0,0.0006,120]
[393922220,1763096695979,-30000.0,0.0006,120]
[393922221,1763096696025,-3000.0,0.0006,120]
[393922222,1763096696073,-150.0,0.0006,120]
[393922223,1763096696124,-150.0,0.0006,120]
[393922224,1763096696323,-150.0,0.0006,120]
[393922225,1763096696368,-150.0,0.0006,120]
[393922226,1763096696413,-150.0,0.0006,120]
[393922227,1763096696456,-150.0,0.0006,120]
[393922228,1763096696504,-478.78,0.0006,120]
[393922229,1763096696552,-234.95,0.0006,120]
[393922230,1763096696597,-154.0,0.0006,120]
[393922231,1763096696643,-773.59561218,0.0006,120]
[393922232,1763096696690,-168.0,0.0006,120]
[393922233,1763096696747,-16196.525,0.0006,120]
[393922234,1763096696802,-368.0,0.000601,120]
[393922235,1763096696851,-500.0,0.00060264,120]
[393922236,1763096696902,-500.0,0.00060264,120]
[393922237,1763096696950,-500.0,0.00060264,120]
[393922238,1763096697002,-500.0,0.00060264,120]
[393922239,1763096697052,-500.0,0.00060264,120]
[393922240,1763096697100,-500.0,0.00060264,120]
[393922241,1763096697146,-500.0,0.00060264,120]
[393922242,1763096697192,-581.66350679,0.00060264,120]
[393922243,1763096697236,-500.0,0.00060274,37]
[393922244,1763096697282,-8302.99,0.00060445,90]
[393922245,1763096697327,-152.0,0.000605,120]
[393922246,1763096697370,-32077.73695268,0.00060899,120]
[393922247,1763096697411,-1000.0,0.00061,120]
[393922248,1763096697453,-2000.0,0.00061,120]
[393922249,1763096697505,-150.0,0.00061,120]
[393922250,1763096697553,-150.0,0.00061,120]
[393922251,1763096697599,-4500.0,0.00061,30]
[393922252,1763096697644,-150.0,0.00061,120]
[393922253,1763096697696,-154.0,0.00061,120]
[393922254,1763096697751,-11735.76844358,0.00061,120]
[393922255,1763096697807,-1298.0,0.00061,60]
[393922256,1763096697854,-1023.14768632,0.000612,120]
[393922257,1763096697903,-1000.0,0.000612,120]
[393922258,1763096697948,-152.0,0.000612,120]
[393922259,1763096697996,-1298.43,0.00061589,120]
[393922260,1763096698045,-2000.0,0.000618,120]
[393922261,1763096698092,-157.66,0.000618,120]
[393922262,1763096698139,-20000.0,0.00061899,120]
[393922263,1763096698183,-152.0,0.000619,120]
[393922264,1763096698228,-1000.0,0.00061999,120]
[393922265,1763096698273,-316.47136484,0.00062,120]
[393922266,1763096698327,-200.0,0.00062,120]
[393922267,1763096698376,-150.0,0.00062,120]
[393922268,1763096698422,-150.0,0.00062,120]
[393922269,1763096698468,-150.0,0.00062,120]
[393922270,1763096698518,-150.0,0.00062,120]
[393922271,1763096698578,-154.0,0.00062,120]
[393922272,1763096698637,-860.44,0.00062,30]
[393922273,1763096698693,-1095.0,0.00062203,120]
[393922274,1763096698747,-152.0,0.000627,120]
[393922275,1763096698800,-150.0,0.00062714,120]
[393922276,1763096698852,-150.0,0.00062714,120]
[393922277,1763096698901,-500.0,0.00062714,120]
[393922278,1763096698953,-500.0,0.00062714,120]
[393922279,1763096699004,-2000.0,0.0006285,65]
[393922281,1763096699053,-20000.0,0.0006299,30]
[393922282,1763096699102,-1000.0,0.00062999,120]
[393922283,1763096699152,-2000.0,0.00063,120]
[393922284,1763096699198,-380.0,0.00063,120]
[393922285,1763096699243,-30000.0,0.00063,120]
[393922286,1763096699292,-200.0,0.00063,120]
[393922287,1763096699336,-150.0,0.00063,120]
[393922288,1763096699387,-214.19,0.00063,120]
[393922289,1763096699435,-1760.0,0.00063,120]
[393922290,1763096699484,-1544.0,0.00063,120]
[393922291,1763096699535,-1689.0,0.00063,120]
[393922292,1763096699588,-1544.0,0.00063,120]
[393922293,1763096699636,-1543.0,0.00063,120]
[393922294,1763096699682,-1543.0,0.00063,120]
[393922295,1763096699728,-150.0,0.00063,120]
[393922296,1763096699774,-1616.0,0.00063,120]